fUST/lending_fUST_20240830
["ID","MTS","AMOUNT","RATE_DAILY","PERIOD"]
[336690287,1725026808001,-595.54598908,0.00035616,31]
[336690288,1725026808022,-247.01205056,0.00035616,31]
[336690289,1725026808046,-500.0,0.00035616,31]
[336690290,1725026808069,-500.0,0.00035616,31]
[336690291,1725026808091,-200.46179479,0.00035616,31]
[336690292,1725026808119,-500.0,0.00035616,31]
[336690293,1725026808284,-325.29964554,0.00035616,31]
[336690294,1725026808308,-501.43104183,0.00035616,31]
[336690295,1725026808330,-500.0,0.00035616,31]
[336690296,1725026808355,-500.0,0.00035616,31]
[336690297,1725026808376,-500.0,0.00035616,31]
[336690298,1725026808398,-500.0,0.00035616,31]
[336690299,1725026808422,-608.63626124,0.00035616,31]
[336690300,1725026808446,-502.38484092,0.00035616,31]
[336690301,1725026808469,-500.0,0.00035616,31]
[336690302,1725026808491,-502.71528468,0.00035616,31]
[336690303,1725026808514,-500.0,0.00035616,31]
[336690304,1725026808536,-500.0,0.00035616,31]
[336690305,1725026808558,-500.0,0.00035616,31]
[336690306,1725026808580,-500.0,0.00035616,31]
[336690307,1725026808608,-308.87016453,0.00035616,31]
[336690308,1725026808629,-500.0,0.00035616,31]
[336690309,1725026808651,-500.0,0.00035616,31]
[336690310,1725026808673,-500.0,0.00035616,31]
[336690311,1725026808695,-502.19564073,0.00035616,31]
[336690312,1725026808716,-2946.29,0.00035616,31]
[336690313,1725026808742,-500.0,0.00035616,31]
[336690314,1725026808764,-500.0,0.00035616,31]
[336690315,1725026808787,-500.0,0.00035616,31]
[336690316,1725026808810,-500.0,0.00035616,31]
[336690317,1725026808832,-500.0,0.00035616,31]
[336690318,1725026808857,-500.0,0.00035616,31]
[336690319,1725026808879,-500.0,0.00035616,31]
[336690320,1725026808901,-500.0,0.00035616,31]
[336690321,1725026808924,-509.75444581,0.00035616,31]
[336690322,1725026808947,-500.0,0.00035616,31]
[336690323,1725026808970,-500.0,0.00035616,31]
[336690324,1725026808992,-500.0,0.00035616,31]
[336690325,1725026809014,-240.97471261,0.00035616,31]
[336690326,1725026809037,-500.0,0.00035616,31]
[336690327,1725026809059,-500.0,0.00035616,31]
[336690328,1725026809081,-500.0,0.00035616,31]
[336690329,1725026809104,-266.58024788,0.00035616,31]
[336690330,1725026809126,-635.57023737,0.00035616,31]
[336690331,1725026809148,-500.0,0.00035616,31]
[336690332,1725026809170,-500.0,0.00035616,31]
[336690333,1725026809192,-500.0,0.00035616,31]
[336690334,1725026809214,-500.0,0.00035616,31]
[336690335,1725026809237,-928.25,0.00035616,31]
[336690336,1725026809259,-500.0,0.00035616,31]
[336690337,1725026809281,-500.70089688,0.00035616,31]
[336690338,1725026809304,-500.0,0.00035616,31]
[336690339,1725026809326,-500.0,0.00035616,31]
[336690340,1725026809351,-500.0,0.00035616,31]
[336690341,1725026809373,-500.0,0.00035616,31]
[336690342,1725026809395,-500.0,0.00035616,31]
[336690343,1725026809416,-500.0,0.00035616,31]
[336690344,1725026809441,-500.0,0.00035616,31]
[336690345,1725026809463,-500.0,0.00035616,31]
[336690346,1725026809487,-500.0,0.00035616,31]
[336690347,1725026809510,-500.0,0.00035616,31]
[336690348,1725026809533,-500.0,0.00035616,31]
[336690349,1725026809556,-500.0,0.00035616,31]
[336690350,1725026809578,-500.0,0.00035616,31]
[336690351,1725026809600,-500.0,0.00035616,31]
[336690352,1725026809622,-500.0,0.00035616,31]
[336690353,1725026809647,-500.0,0.00035616,31]
[336690354,1725026809669,-500.0,0.00035616,31]
[336690355,1725026809691,-500.0,0.00035616,31]
[336690356,1725026809713,-500.0,0.00035616,31]
[336690357,1725026809735,-500.0,0.00035616,31]
[336690358,1725026809757,-500.0,0.00035616,31]
[336690359,1725026809779,-500.0,0.00035616,31]
[336690360,1725026809801,-500.0,0.00035616,31]
[336690361,1725026809822,-500.0,0.00035616,31]
[336690362,1725026809846,-158.30351237,0.00035616,31]
[336690363,1725026809870,-500.0,0.00035616,31]
[336690364,1725026809895,-500.0,0.00035616,31]
[336690365,1725026809921,-500.0,0.00035616,31]
[336690366,1725026809944,-500.0,0.00035616,31]
[336690367,1725026809969,-500.0,0.00035616,31]
[336690368,1725026809993,-500.0,0.00035616,31]
[336690369,1725026810016,-500.0,0.00035616,31]
[336690370,1725026810041,-500.0,0.00035616,31]
[336690371,1725026810063,-500.0,0.00035616,31]
[336690372,1725026810086,-501.55899695,0.00035616,31]
[336690373,1725026810112,-500.0,0.00035616,31]
[336690374,1725026810135,-500.0,0.00035616,31]
[336690375,1725026810157,-225.02084156,0.00035616,31]
[336690376,1725026810178,-500.0,0.00035616,31]
[336690377,1725026810200,-500.0,0.00035616,31]
[336690378,1725026810223,-500.0,0.00035616,31]
[336690379,1725026810247,-500.0,0.00035616,31]
[336690380,1725026810268,-500.0,0.00035616,31]
[336690381,1725026810291,-501.70695037,0.00035616,31]
[336690382,1725026810312,-500.0,0.00035616,31]
[336690383,1725026810333,-505.10180024,0.00035616,31]
[336690384,1725026810356,-500.0,0.00035616,31]
[336690385,1725026810378,-500.0,0.00035616,31]
[336690386,1725026810400,-500.0,0.00035616,31]
[336690387,1725026810421,-271.36924426,0.00035616,31]
[336690388,1725026810446,-500.0,0.00035616,31]
[336690389,1725026810469,-500.0,0.00035616,31]
[336690390,1725026810490,-500.0,0.00035616,31]
[336690391,1725026810614,-500.0,0.00035616,31]
[336690392,1725026810638,-500.0,0.00035616,31]
[336690393,1725026810661,-500.0,0.00035616,31]
[336690394,1725026810683,-500.0,0.00035616,31]
[336690395,1725026810706,-500.0,0.00035616,31]
[336690396,1725026810728,-500.0,0.00035616,31]
[336690397,1725026810751,-500.0,0.00035616,31]
[336690398,1725026810774,-500.0,0.00035616,31]
[336690399,1725026810796,-500.0,0.00035616,31]
[336690400,1725026810817,-500.0,0.00035616,31]
[336690401,1725026810840,-500.0,0.00035616,31]
[336690402,1725026810868,-500.0,0.00035616,31]
[336690403,1725026810893,-500.0,0.00035616,31]
[336690404,1725026810914,-500.0,0.00035616,31]
[336690405,1725026810936,-500.0,0.00035616,31]
[336690406,1725026810958,-500.0,0.00035616,31]
[336690407,1725026810981,-500.0,0.00035616,31]
[336690408,1725026811003,-500.0,0.00035616,31]
[336690409,1725026811027,-500.0,0.00035616,31]
[336690410,1725026811050,-500.0,0.00035616,31]
[336690411,1725026811074,-500.0,0.00035616,31]
[336690412,1725026811096,-500.0,0.00035616,31]
[336690413,1725026811125,-500.0,0.00035616,31]
[336690414,1725026811147,-500.0,0.00035616,31]
[336690415,1725026811169,-500.0,0.00035616,31]
[336690416,1725026811190,-502.2377473,0.00035616,31]
[336690417,1725026811214,-500.0,0.00035616,31]
[336690418,1725026811236,-501.77493751,0.00035616,31]
[336690419,1725026811259,-500.0,0.00035616,31]
[336690420,1725026811282,-500.0,0.00035616,31]
[336690421,1725026811303,-500.0,0.00035616,31]
[336690422,1725026811327,-497.54850478,0.00035616,31]
[336690423,1725026811353,-500.0,0.00035616,31]
[336690424,1725026811374,-500.0,0.00035616,31]
[336690425,1725026811395,-500.0,0.00035616,31]
[336690426,1725026811418,-500.0,0.00035616,31]
[336690427,1725026811442,-500.0,0.00035616,31]
[336690428,1725026811464,-232.15259844,0.00035616,31]
[336690429,1725026811489,-500.0,0.00035616,31]
[336690430,1725026811513,-500.0,0.00035616,31]
[336690431,1725026811535,-626.58753105,0.00035616,31]
[336690432,1725026811556,-500.0,0.00035616,31]
[336690433,1725026811578,-500.0,0.00035616,31]
[336690434,1725026811602,-500.0,0.00035616,31]
[336690435,1725026811623,-500.0,0.00035616,31]
[336690436,1725026811644,-500.0,0.00035616,31]
[336690437,1725026811667,-500.0,0.00035616,31]
[336690438,1725026811688,-762.99,0.00035616,31]
[336690439,1725026811710,-500.0,0.00035616,31]
[336690440,1725026811731,-707.59,0.00035616,31]
[336690441,1725026811753,-500.0,0.00035616,31]
[336690442,1725026811776,-500.0,0.00035616,31]
[336690443,1725026811798,-500.0,0.00035616,31]
[336690444,1725026811819,-500.0,0.00035616,31]
[336690445,1725026811841,-500.0,0.00035616,31]
[336690446,1725026811865,-500.0,0.00035616,31]
[336690447,1725026811886,-500.0,0.00035616,31]
[336690448,1725026811909,-500.0,0.00035616,31]
[336690449,1725026811932,-500.0,0.00035616,31]
[336690450,1725026811956,-2570.01,0.00035616,31]
[336690451,1725026811979,-500.0,0.00035616,31]
[336690452,1725026812002,-1384.56,0.00035616,31]
[336690453,1725026812023,-500.0,0.00035616,31]
[336690454,1725026812046,-500.0,0.00035616,31]
[336690455,1725026812067,-500.0,0.00035616,31]
[336690456,1725026812090,-500.0,0.00035616,31]
[336690457,1725026812117,-500.0,0.00035616,31]
[336690458,1725026812138,-500.0,0.00035616,31]
[336690459,1725026812162,-500.0,0.00035616,31]
[336690460,1725026812187,-500.0,0.00035616,31]
[336690461,1725026812210,-500.0,0.00035616,31]
[336690462,1725026812232,-500.0,0.00035616,31]
[336690463,1725026812256,-500.0,0.00035616,31]
[336690464,1725026812278,-500.0,0.00035616,31]
[336690465,1725026812300,-500.0,0.00035616,31]
[336690466,1725026812322,-540.12,0.00035616,31]
[336690467,1725026812346,-500.0,0.00035616,31]
[336690468,1725026812371,-500.0,0.00035616,31]
[336690469,1725026812392,-500.0,0.00035616,31]
[336690470,1725026812414,-1314.59,0.00035616,31]
[336690471,1725026812437,-500.0,0.00035616,31]
[336690472,1725026812459,-501.54345102,0.00035616,31]
[336690473,1725026812487,-500.0,0.00035616,31]
[336690474,1725026812510,-502.62228021,0.00035616,31]
[336690475,1725026812532,-500.0,0.00035616,31]
[336690476,1725026812554,-368.10877107,0.00035616,31]
[336690477,1725026812575,-500.0,0.00035616,31]
[336690478,1725026812597,-500.0,0.00035616,31]
[336690479,1725026812631,-500.40273088,0.00035616,31]
[336690480,1725026812653,-500.0,0.00035616,31]
[336690481,1725026812675,-500.0,0.00035616,31]
[336690482,1725026812695,-500.0,0.00035616,31]
[336690483,1725026812718,-500.0,0.00035616,31]
[336690484,1725026812740,-2266.31,0.00035616,31]
[336690485,1725026812762,-500.0,0.00035616,31]
[336690486,1725026812871,-500.0,0.00035616,31]
[336690487,1725026812893,-500.0,0.00035616,31]
[336690488,1725026812914,-500.0,0.00035616,31]
[336690489,1725026812935,-501.64840669,0.00035616,31]
[336690490,1725026812958,-1386.81,0.00035616,31]
[336690491,1725026812980,-500.0,0.00035616,31]
[336690492,1725026813002,-500.0,0.00035616,31]
[336690493,1725026813023,-500.0,0.00035616,31]
[336690494,1725026813046,-500.0,0.00035616,31]
[336690495,1725026813066,-500.0,0.00035616,31]
[336690496,1725026813088,-785.61,0.00035616,31]
[336690497,1725026813111,-500.0,0.00035616,31]
[336690498,1725026813137,-500.0,0.00035616,31]
[336690499,1725026813161,-500.0,0.00035616,31]
[336690500,1725026813184,-500.0,0.00035616,31]
[336690501,1725026813205,-500.0,0.00035616,31]
[336690502,1725026813228,-497.53983266,0.00035616,31]
[336690503,1725026813250,-927.44,0.00035616,31]
[336690504,1725026813272,-500.0,0.00035616,31]
[336690505,1725026813296,-500.0,0.00035616,31]
[336690506,1725026813323,-500.0,0.00035616,31]
[336690507,1725026813353,-500.0,0.00035616,31]
[336690508,1725026813375,-500.0,0.00035616,31]
[336690509,1725026813399,-1110.54,0.00035616,31]
[336690510,1725026813423,-500.0,0.00035616,31]
[336690511,1725026813452,-500.0,0.00035616,31]
[336690512,1725026813475,-500.0,0.00035616,31]
[336690513,1725026813498,-500.0,0.00035616,31]
[336690514,1725026813524,-502.48093956,0.00035616,31]
[336690515,1725026813550,-500.0,0.00035616,31]
[336690516,1725026813575,-2570.02,0.00035616,31]
[336690517,1725026813596,-500.0,0.00035616,31]
[336690518,1725026813621,-500.0,0.00035616,31]
[336690519,1725026813644,-2904.96,0.00035616,31]
[336690520,1725026813667,-3360.62,0.00035616,31]
[336690521,1725026813688,-500.0,0.00035616,31]
[336690522,1725026813709,-500.0,0.00035616,31]
[336690523,1725026813730,-500.0,0.00035616,31]
[336690524,1725026813750,-500.0,0.00035616,31]
[336690525,1725026813773,-2253.39,0.00035616,31]
[336690526,1725026813799,-500.0,0.00035616,31]
[336690527,1725026813825,-500.0,0.00035616,31]
[336690528,1725026813846,-500.0,0.00035616,31]
[336690529,1725026813872,-506.59497658,0.00035616,31]
[336690530,1725026813895,-2293.44,0.00035616,31]
[336690531,1725026813918,-500.0,0.00035616,31]
[336690532,1725026813940,-500.0,0.00035616,31]
[336690533,1725026813962,-500.0,0.00035616,31]
[336690534,1725026813982,-503.07985641,0.00035616,31]
[336690535,1725026814004,-500.0,0.00035616,31]
[336690536,1725026814026,-500.0,0.00035616,31]
[336690537,1725026814050,-500.0,0.00035616,31]
[336690538,1725026814071,-500.0,0.00035616,31]
[336690539,1725026814094,-500.0,0.00035616,31]
[336690540,1725026814120,-500.0,0.00035616,31]
[336690541,1725026814141,-500.0,0.00035616,31]
[336690542,1725026814163,-500.0,0.00035616,31]
[336690543,1725026814185,-500.0,0.00035616,31]
[336690544,1725026814208,-3583.09,0.00035616,31]
[336690545,1725026814231,-869.88,0.00035616,31]
[336690546,1725026814255,-869.88,0.00035616,31]
[336690547,1725026814276,-869.88,0.00035616,31]
[336690548,1725026814299,-869.88,0.00035616,31]
[336690549,1725026814322,-869.88,0.00035616,31]
[336690550,1725026814344,-869.88,0.00035616,31]
[336690551,1725026814371,-869.88,0.00035616,31]
[336690552,1725026814395,-869.88,0.00035616,31]
[336690553,1725026814417,-2918.65,0.00035616,31]
[336690554,1725026814444,-869.88,0.00035616,31]
[336690555,1725026814466,-869.88,0.00035616,31]
[336690556,1725026814490,-869.88,0.00035616,31]
[336690557,1725026814514,-869.88,0.00035616,31]
[336690558,1725026814536,-869.88,0.00035616,31]
[336690559,1725026814560,-869.88,0.00035616,31]
[336690560,1725026814582,-500.0,0.00035616,31]
[336690561,1725026814608,-869.88,0.00035616,31]
[336690562,1725026814632,-869.88,0.00035616,31]
[336690563,1725026814656,-869.88,0.00035616,31]
[336690564,1725026814680,-869.88,0.00035616,31]
[336690565,1725026814701,-1331.8,0.00035616,31]
[336690566,1725026814723,-500.0,0.00035616,31]
[336690567,1725026814745,-500.0,0.00035616,31]
[336690568,1725026814769,-1626.82,0.00035616,31]
[336690569,1725026814790,-1191.64,0.00035616,31]
[336690570,1725026814815,-500.0,0.00035616,31]
[336690571,1725026814839,-500.0,0.00035616,31]
[336690572,1725026814866,-500.0,0.00035616,31]
[336690573,1725026814887,-500.0,0.00035616,31]
[336690574,1725026814910,-541.99109517,0.00035616,31]
[336690575,1725026814936,-500.0,0.00035616,31]
[336690576,1725026814958,-500.0,0.00035616,31]
[336690577,1725026815115,-503.07998436,0.00035616,31]
[336690578,1725026815137,-500.0,0.00035616,31]
[336690579,1725026815162,-2620.5,0.00035616,31]
[336690580,1725026815185,-501.94748031,0.00035616,31]
[336690581,1725026815208,-500.0,0.00035616,31]
[336690582,1725026815230,-500.0,0.00035616,31]
[336690583,1725026815253,-500.0,0.00035616,31]
[336690584,1725026815277,-71.8025536,0.00035616,31]
[336690585,1725026815451,-2000.0,0.00035,30]
[336690586,1725026838339,2500.0,0.00019,2]
[336690588,1725026904795,158.249946,0.00014247,2]
[336690590,1725026950237,852.51,0.00019,2]
[336690618,1725027034785,-710.901675,0.00021,2]
[336690619,1725027034796,-158.249946,0.00021065,2]
[336690620,1725027034807,-500.0,0.00027371,2]
[336690621,1725027034817,-158.249946,0.00027884,2]
[336690622,1725027034826,-205.2119363,0.00027982,2]
[336690623,1725027034836,-500.0,0.00028128,2]
[336690624,1725027034846,-500.0,0.00029104,2]
[336690625,1725027034857,-352.1453463,0.00029114,2]
[336690639,1725027038199,-147.8546537,0.00029114,2]
[336690640,1725027038208,-191.146793,0.00029254,2]
[336690641,1725027038218,-500.0,0.00029265,2]
[336690642,1725027038229,-200.0,0.0002932,15]
[336690643,1725027038240,-500.0,0.00029333,2]
[336690644,1725027038249,-500.0,0.00029424,2]
[336690645,1725027038259,-300.0,0.00029436,2]
[336690646,1725027038268,-6907.006096,0.00029437,2]
[336690647,1725027038279,-817.8999268,0.00029448,2]
[336690648,1725027038295,-500.0,0.00030284,7]
[336690649,1725027038304,-500.0,0.00030298,7]
[336690650,1725027038314,-500.0,0.00030329,7]
[336690651,1725027038323,-500.0,0.00031086,7]
[336690652,1725027038333,-500.0,0.00031413,7]
[336690654,1725027038343,-500.0,0.00031507,7]
[336690655,1725027038353,-500.0,0.00031757,7]
[336690656,1725027038363,-151.0,0.00031933,7]
[336690657,1725027038373,-150.0,0.0003219,14]
[336690658,1725027038383,-150.0,0.0003219,14]
[336690659,1725027038392,-200.0,0.0003219,14]
[336690660,1725027038402,-500.0,0.00032252,7]
[336690661,1725027038411,-500.0,0.0003283,7]
[336690662,1725027038421,-500.0,0.00032926,7]
[336690663,1725027038431,-500.0,0.00033187,7]
[336690664,1725027038440,-151.0,0.00033242,15]
[336690665,1725027038451,-500.0,0.00033257,7]
[336690666,1725027038462,-1587.7980272,0.00033698,2]
[336690667,1725027038472,-500.0,0.00033798,7]
[336690668,1725027038485,-500.0,0.0003401,7]
[336690669,1725027038599,-500.0,0.00034029,7]
[336690670,1725027038610,-500.0,0.00034054,7]
[336690671,1725027038619,-500.0,0.00034176,7]
[336690672,1725027038629,-151.0,0.00034551,15]
[336690673,1725027038643,-158.249946,0.00034703,2]
[336690674,1725027038654,-500.0,0.00035273,7]
[336690675,1725027038663,-500.0,0.00035468,7]
[336690676,1725027038673,-409.5167953,0.000355,120]
[336690677,1725027038682,-409.5167953,0.000355,60]
[336690678,1725027038691,-409.5167953,0.000355,120]
[336690679,1725027038700,-409.5167953,0.000355,120]
[336690680,1725027038710,-409.5167953,0.000355,60]
[336690681,1725027038719,-409.5167953,0.000355,120]
[336690682,1725027038729,-409.5167953,0.000355,31]
[336690683,1725027038738,-409.5167953,0.000355,31]
[336690684,1725027038748,-409.5167953,0.000355,31]
[336690685,1725027038757,-409.5167953,0.000355,31]
[336690686,1725027038766,-2273.14379776,0.00035515,2]
[336690687,1725027038775,-2009.71765334,0.00035584,2]
[336690688,1725027038789,-263.42614441,0.00035584,2]
[336690689,1725027038798,-1107.98267305,0.00035596,3]
[336690706,1725027040123,-6202.18732695,0.00035596,3]
[336690707,1725027040133,-283.55,0.00035596,3]
[336690708,1725027040143,-6091.81,0.00035596,3]
[336690709,1725027040153,-150.112233,0.000356,5]
[336690710,1725027040162,-500.0,0.00035605,7]
[336690711,1725027040172,-500.0,0.00035605,7]
[336690712,1725027040181,-500.0,0.00035605,7]
[336690713,1725027040191,-500.0,0.00035605,7]
[336690714,1725027040201,-192.62801213,0.00035605,7]
[336690715,1725027040212,-500.0,0.00035605,7]
[336690716,1725027040222,-82126.32057035,0.00035606,4]
[336690726,1725027043038,-850.68,0.00035596,3]
[336690727,1725027043048,-1643.10594855,0.00035606,4]
[336690728,1725027043063,-36886.69112448,0.00035606,4]
[336690764,1725027446604,217.50068,0.0001863,2]
[336690767,1725027500899,151.0,0.0003,120]
[336690768,1725027501457,151.0,0.00031616,120]
[336690769,1725027502039,151.0,0.00033233,120]
[336690773,1725027798559,409.3878908,0.00034755,60]
[336690777,1725027836804,409.5167953,0.00034755,60]
[336690779,1725027875631,819.0335906,0.00034755,60]
[336690780,1725027928683,643.9217609,0.00034755,60]
[336690783,1725027962862,409.5167953,0.00034755,60]
[336690786,1725027975411,217.50068,0.0001863,2]
[336690787,1725028010191,158.249946,0.00014247,2]
[336690790,1725028112499,794.23602485,0.00017,2]
[336690792,1725028123858,366.20802358,0.000129,2]
[336690796,1725028225495,6.6803567,0.0003,120]
[336690842,1725028232187,-300.0,0.00019999,2]
[336690843,1725028232197,-12604.11315879,0.0002,2]
[336690844,1725028232706,-29008.49663441,0.0002,2]
[336690845,1725028232717,-204.34911537,0.000209,2]
[336690846,1725028232729,-150.0,0.00021,2]
[336690847,1725028232741,-420.0,0.00021999,2]
[336690848,1725028232753,-158.249946,0.00023014,2]
[336690849,1725028232762,-180.0,0.00024199,2]
[336690850,1725028232772,-500.0,0.00028138,2]
[336690851,1725028232782,-500.0,0.00028695,2]
[336690852,1725028232792,-379.2428929,0.00028928,2]
[336690853,1725028232803,-500.0,0.00028961,2]
[336690854,1725028232814,-3000.0,0.00029122,2]
[336690855,1725028232826,-251.0,0.00029269,2]
[336690856,1725028232836,-182.109308,0.000293,2]
[336690857,1725028232849,-500.0,0.00029738,2]
[336690858,1725028232863,-189.335375,0.00029818,2]
[336690859,1725028232872,-144.3196433,0.0003,120]
[336690860,1725028232882,-500.0,0.00030099,7]
[336690861,1725028232892,-500.0,0.00030546,7]
[336690862,1725028232901,-500.0,0.00030674,7]
[336690863,1725028232911,-182.109308,0.00030827,2]
[336690864,1725028232920,-500.0,0.00031224,7]
[336690865,1725028232933,-500.0,0.00031642,7]
[336690866,1725028232943,-151.0,0.00031671,120]
[336690867,1725028232952,-158.249946,0.00031781,2]
[336690868,1725028232962,-500.0,0.00032104,7]
[336690869,1725028232971,-500.0,0.00032169,7]
[336690870,1725028232980,-150.0,0.00032192,14]
[336690871,1725028232990,-150.0,0.00032192,14]
[336690872,1725028233000,-200.0,0.00032192,14]
[336690873,1725028233009,-10007.61374001,0.00032192,7]
[336690874,1725028233020,-200.66609129,0.00032192,4]
[336690875,1725028233030,-500.0,0.00032645,7]
[336690876,1725028233040,-500.0,0.00032679,7]
[336690877,1725028233049,-5196.25171994,0.00032715,2]
[336690878,1725028233059,-500.0,0.00032974,7]
[336690879,1725028233068,-171.0,0.00033,2]
[336690880,1725028233078,-5196.25171994,0.00033093,2]
[336690881,1725028233087,-151.0,0.00033342,120]
[336690882,1725028233097,-5196.25171994,0.00033375,2]
[336690883,1725028233107,-5196.25171994,0.00033544,2]
[336690884,1725028233116,-500.0,0.00033896,7]
[336690885,1725028233125,-5196.25171994,0.00033971,2]
[336690886,1725028233135,-5196.25171994,0.00034081,2]
[336690887,1725028233144,-6048.76,0.00034242,3]
[336690888,1725028233154,-7258.51,0.00034252,3]
[336690889,1725028233165,-5196.25171994,0.00034262,2]
[336690890,1725028233174,-5196.25171994,0.00034529,2]
[336690891,1725028233184,-5196.25171994,0.00035013,2]
[336690892,1725028233194,-151.0,0.00035014,120]
[336690893,1725028233204,-5196.25172001,0.00035182,2]
[336690894,1725028233213,-2108.77930938,0.000355,2]
[336690895,1725028233223,-2108.77930934,0.00035504,2]
[336690896,1725028233234,-2108.77930934,0.00035508,2]
[336690897,1725028233244,-2108.77930934,0.00035512,2]
[336690898,1725028233253,-3004.69109078,0.00035516,120]
[336690899,1725028233263,-493.6963366,0.00035516,120]
[336690900,1725028233273,-2108.77930934,0.00035516,2]
[336690901,1725028233282,-1616.74683471,0.00035516,2]
[336690902,1725028233292,-567.1,0.00035566,3]
[336690903,1725028233303,-500.0,0.00035575,7]
[336690904,1725028233312,-181.63965216,0.00035575,7]
[336690905,1725028233322,-228.91564686,0.00035575,7]
[336690906,1725028233332,-500.0,0.00035575,7]
[336690907,1725028233342,-500.0,0.00035575,7]
[336690908,1725028233352,-260.26013275,0.00035575,7]
[336690909,1725028233362,-500.0,0.00035575,7]
[336690910,1725028233372,-500.0,0.00035575,7]
[336690911,1725028233382,-500.0,0.00035575,7]
[336690912,1725028233392,-58175.46737005,0.00035576,4]
[336690913,1725028233413,-435.15306822,0.00035576,4]
[336690917,1725028238377,-625.27318527,0.0003397,7]
[336690918,1725028238387,-500.0,0.00035575,7]
[336690919,1725028238396,-500.0,0.00035575,7]
[336690920,1725028238406,-500.0,0.00035575,7]
[336690921,1725028238416,-500.0,0.00035575,7]
[336690922,1725028238425,-77000.88839136,0.00035576,4]
[336690923,1725028238438,-27091.58235221,0.00035576,4]
[336690924,1725028238548,-2301.48346651,0.00035576,4]
[336690932,1725028242116,-1200.1068144,0.00035566,3]
[336690933,1725028242128,-3840.5231856,0.00035566,3]
[336690934,1725028242137,-35839.83707565,0.00035576,4]
[336690935,1725028242146,-151.0,0.00035595,2]
[336690936,1725028242156,-151.0,0.00035595,2]
[336690937,1725028242166,-151.0,0.00035595,2]
[336690938,1725028242175,-151.0,0.00035595,2]
[336690939,1725028242185,-151.0,0.00035595,2]
[336690940,1725028242195,-151.0,0.00035595,2]
[336690941,1725028242204,-151.0,0.00035595,2]
[336690942,1725028242213,-151.0,0.00035595,2]
[336690943,1725028242223,-151.0,0.00035595,2]
[336690944,1725028242232,-151.0,0.00035595,2]
[336690945,1725028242242,-100422.205862,0.00035595,4]
[336690946,1725028242251,-224.37455676,0.00035595,5]
[336690947,1725028242260,-100422.205862,0.00035596,4]
[336690948,1725028242270,-150.112233,0.000356,7]
[336690949,1725028242280,-150.112233,0.000356,6]
[336690950,1725028242289,-150.112233,0.000356,5]
[336690951,1725028242299,-500.0,0.00035616,31]
[336690952,1725028242308,-500.0,0.00035616,31]
[336690953,1725028242318,-500.0,0.00035616,31]
[336690954,1725028242328,-502.6677539,0.00035616,30]
[336690955,1725028242337,-500.0,0.00035616,31]
[336690956,1725028242346,-500.0,0.00035616,31]
[336690957,1725028242356,-500.0,0.00035616,31]
[336690958,1725028242365,-500.0,0.00035616,31]
[336690959,1725028242374,-500.0,0.00035616,31]
[336690960,1725028242384,-500.0,0.00035616,31]
[336690961,1725028242393,-500.0,0.00035616,31]
[336690962,1725028242403,-500.0,0.00035616,31]
[336690963,1725028242413,-500.0,0.00035616,31]